bitfinex-derivatives/quotes_BTCF0:USTF0_20241224
["timestamp","ask_amount","ask_price","bid_price","bid_amount"]
[1735001033664,0.055008,94442.0,94437.0,0.053011]
[1735001034361,0.053008,94442.0,94437.0,0.053011]
[1735001034662,0.055008,94442.0,94437.0,0.053011]
[1735001035660,0.055008,94442.0,94438.0,0.05301]
[1735001035866,0.001,94442.0,94441.0,0.053009]
[1735001036065,0.003,94442.0,94441.0,0.053009]
[1735001036673,0.002,94442.0,94441.0,0.053009]
[1735001036860,0.004,94442.0,94441.0,0.053009]
[1735001037559,0.09409189,94447.0,94444.0,0.053007]
[1735001038662,0.053003,94452.0,94444.0,0.053007]
[1735001039785,0.00558873,94445.0,94444.0,0.053007]
[1735001041671,0.00558873,94445.0,94444.0,0.413807]
[1735001042366,0.004,94445.0,94444.0,0.413807]
[1735001043265,0.004,94445.0,94444.0,0.42516221]
[1735001048379,0.004,94445.0,94444.0,0.74283444]
[1735001049577,0.004,94445.0,94444.0,0.42516221]
[1735001051673,0.3608,94465.0,94444.0,0.42516221]
[1735001051980,0.001,94445.0,94444.0,0.42516221]
[1735001052174,0.001,94445.0,94444.0,1.10240642]
[1735001053376,0.001,94445.0,94444.0,0.78596221]
[1735001054675,0.001,94445.0,94444.0,0.78996221]
[1735001055077,0.001,94445.0,94444.0,0.88466221]
[1735001059375,0.052999,94459.0,94444.0,0.83165521]
[1735001059576,0.052999,94459.0,94455.0,0.3608]
[1735001059784,0.3608,94459.0,94448.0,0.31713685]
[1735001060085,0.053004,94449.0,94448.0,0.31713685]
[1735001061079,0.1004,94458.0,94444.0,0.37215521]
[1735001061284,0.053005,94449.0,94444.0,0.37215521]
[1735001061474,0.0986,94448.0,94444.0,0.37215521]
[1735001062778,0.053007,94445.0,94444.0,0.3608]
[1735001062978,0.053007,94445.0,94439.0,0.31713685]
[1735001063282,0.053007,94445.0,94439.0,0.38096436]
[1735001064280,0.053007,94445.0,94439.0,0.06382751]
[1735001064479,0.055007,94445.0,94439.0,0.06382751]
[1735001064886,0.055007,94445.0,94442.0,0.3608]
[1735001065086,0.057007,94445.0,94442.0,0.3608]
[1735001065791,0.057007,94445.0,94439.0,0.06382751]
[1735001066180,0.057007,94445.0,94442.0,0.3608]
[1735001066483,0.004,94445.0,94443.0,0.053008]
[1735001066689,0.004,94445.0,94442.0,0.3608]
[1735001067093,0.005,94445.0,94442.0,0.3608]
[1735001067685,0.002,94445.0,94442.0,0.3608]
[1735001067885,0.005,94445.0,94442.0,0.3608]
[1735001068683,0.09409189,94454.0,94453.0,0.053002]
[1735001068886,0.05702969,94454.0,94453.0,0.413802]
[1735001069693,0.052995,94466.0,94458.0,0.052999]
[1735001069887,0.052995,94466.0,94464.0,0.3608]
[1735001070991,0.052995,94465.0,94464.0,0.3608]
[1735001071387,0.052995,94465.0,94464.0,0.001]
[1735001071984,0.009,94466.0,94464.0,0.001]
[1735001072192,0.009,94466.0,94465.0,0.052995]
[1735001072888,0.009,94466.0,94465.0,0.153895]
[1735001073092,0.00158819,94479.0,94465.0,0.199]
[1735001073284,0.00158819,94479.0,94478.0,0.052988]
[1735001073686,0.2889,94491.0,94479.0,0.052987]
[1735001073882,0.341881,94491.0,94479.0,0.052987]
[1735001074285,0.46775668,94491.0,94479.0,0.052987]
[1735001074791,0.46775668,94491.0,94486.0,0.3608]
[1735001074993,0.052982,94489.0,94486.0,0.3608]
[1735001076688,0.2889,94491.0,94486.0,0.3608]
[1735001076893,0.001,94489.0,94486.0,0.3698]
[1735001077195,0.002,94489.0,94486.0,0.3718]
[1735001077389,0.001,94489.0,94486.0,0.3718]
[1735001077595,0.002,94489.0,94486.0,0.3718]
[1735001077789,0.002,94489.0,94486.0,0.3698]
[1735001078095,0.001,94489.0,94486.0,0.2978]
[1735001079197,0.001,94489.0,94487.0,0.052983]
[1735001079496,0.002,94489.0,94487.0,0.052983]
[1735001080298,0.001,94489.0,94487.0,0.052983]
[1735001080498,0.003,94489.0,94487.0,0.166483]
[1735001083792,0.003,94489.0,94487.0,0.1135]
[1735001083992,0.003,94489.0,94488.0,0.052982]
[1735001085196,0.001,94489.0,94488.0,0.052982]
[1735001085697,0.052977,94499.0,94488.0,0.052982]
[1735001085898,0.001,94489.0,94488.0,0.054982]
[1735001086692,0.052977,94499.0,94487.0,0.1025]
[1735001086996,0.053977,94499.0,94493.0,0.05298]
[1735001087907,0.054977,94499.0,94493.0,0.05298]
[1735001088107,0.054977,94499.0,94487.0,0.09248]
[1735001088296,0.054977,94499.0,94487.0,0.08348]
[1735001088602,0.001,94499.0,94493.0,0.009]
[1735001088813,0.001,94499.0,94497.0,0.052977]
[1735001089297,0.002,94499.0,94497.0,0.052977]
[1735001089805,0.002,94499.0,94498.0,0.052977]
[1735001089993,0.001,94499.0,94498.0,0.052977]
[1735001090193,0.002,94499.0,94498.0,0.052977]
[1735001090395,0.001,94499.0,94498.0,0.052977]
[1735001090595,0.002,94499.0,94498.0,0.052977]
[1735001091005,0.001,94499.0,94498.0,0.052977]
[1735001091209,0.002,94499.0,94498.0,0.061977]
[1735001092512,0.002,94499.0,94498.0,0.009]
[1735001092694,0.001,94499.0,94498.0,0.009]
[1735001092898,0.002,94499.0,94498.0,0.009]
[1735001093107,0.054976,94499.0,94487.0,0.071459]
[1735001093593,0.054976,94499.0,94495.0,0.052978]
[1735001094106,0.053976,94499.0,94498.0,0.052977]
[1735001094412,0.054976,94499.0,94498.0,0.052977]
[1735001095205,0.053976,94499.0,94498.0,0.052977]
[1735001095405,0.002,94499.0,94498.0,0.052977]
[1735001096011,0.001,94499.0,94498.0,0.052977]
[1735001096310,0.002,94499.0,94498.0,0.059977]
[1735001096499,0.001,94499.0,94498.0,0.059977]
[1735001096699,0.002,94499.0,94498.0,0.059977]
[1735001100612,0.002,94499.0,94498.0,0.007]
[1735001100916,0.054976,94499.0,94498.0,0.007]
[1735001101315,0.415776,94499.0,94498.0,0.007]
[1735001101506,0.052985,94484.0,94470.0,0.2089287]
[1735001101802,0.413785,94484.0,94477.0,0.052988]
[1735001102111,0.413785,94484.0,94470.0,0.2089287]
[1735001102112,0.413785,94484.0,94471.0,0.052992]
[1735001102418,0.413785,94484.0,94471.0,0.31723916]
[1735001102419,0.052991,94472.0,94471.0,0.31723916]
[1735001102714,0.413791,94472.0,94471.0,0.31723916]
[1735001103415,0.052995,94465.0,94460.0,0.052998]
[1735001104114,0.052995,94465.0,94458.0,0.31723916]
[1735001104517,0.052995,94465.0,94450.0,0.10791268]
[1735001104915,0.060995,94465.0,94464.0,0.00258783]
[1735001105820,0.065995,94465.0,94464.0,0.00258783]
[1735001106516,0.060995,94465.0,94464.0,0.00258783]
[1735001106815,0.065995,94465.0,94464.0,0.00258783]
[1735001107517,0.065995,94465.0,94464.0,0.00225485]
[1735001115823,0.065995,94465.0,94464.0,0.001]
[1735001116019,0.053005,94448.0,94447.0,0.61389779]
[1735001117428,0.053005,94448.0,94447.0,0.3608]
[1735001117429,0.054005,94448.0,94447.0,0.3608]
[1735001118018,0.056005,94448.0,94447.0,0.3608]
[1735001119627,0.053008,94442.0,94439.0,0.0996]
[1735001120029,0.053008,94442.0,94439.0,0.15261]
[1735001120229,0.053008,94442.0,94441.0,0.19874179]
[1735001120729,0.053008,94442.0,94441.0,0.1881]
[1735001121121,0.056008,94442.0,94441.0,0.1881]
[1735001121722,0.057008,94442.0,94441.0,0.1881]
[1735001122130,0.060008,94442.0,94441.0,0.1881]
[1735001122821,0.061008,94442.0,94441.0,0.1881]
[1735001140741,0.053009,94441.0,94440.0,0.01096145]
[1735001140941,0.05301,94440.0,94436.0,0.00158821]
[1735001141337,0.05301,94439.0,94436.0,0.00158821]
[1735001141543,0.053011,94437.0,94436.0,0.00158821]
[1735001142239,0.053011,94437.0,94436.0,0.0123806]
[1735001143440,0.055011,94437.0,94436.0,0.0123806]
[1735001144145,0.058011,94437.0,94436.0,0.0123806]
[1735001144532,0.058011,94437.0,94436.0,0.32961976]
[1735001146339,0.058011,94437.0,94436.0,0.0123806]
[1735001146540,0.058011,94437.0,94436.0,0.00158821]
[1735001151753,0.18390062,94437.0,94436.0,0.00158821]
[1735001152948,0.058011,94437.0,94436.0,0.00158821]
[1735001153352,0.150511,94437.0,94436.0,0.00158821]
[1735001155547,0.058011,94437.0,94436.0,0.00158821]
[1735001155856,0.10336712,94439.0,94436.0,0.36238821]
[1735001156048,0.15733465,94446.0,94438.0,0.053011]
[1735001156248,0.15733465,94446.0,94445.0,0.413807]
[1735001156756,0.15635172,94446.0,94445.0,0.413807]
[1735001156941,0.052996,94465.0,94452.0,0.053003]
[1735001157145,0.052996,94464.0,94452.0,0.413803]
[1735001157356,0.052997,94463.0,94452.0,0.413803]
[1735001157747,0.439362,94467.0,94452.0,0.413803]
[1735001158049,0.00108001,94467.0,94466.0,0.052995]
[1735001158249,0.00158828,94471.0,94470.0,0.052993]
[1735001159156,0.00158828,94471.0,94470.0,0.30650566]
[1735001159951,0.00258828,94471.0,94470.0,0.31550566]
[1735001160559,0.00358828,94471.0,94470.0,0.061993]
[1735001160760,0.002,94471.0,94470.0,0.061993]
[1735001162353,0.002,94471.0,94470.0,0.07288869]
[1735001165664,0.002,94471.0,94470.0,0.01989569]
[1735001165864,0.002,94471.0,94470.0,0.009]
[1735001166159,0.002,94471.0,94470.0,0.19857286]
[1735001167157,0.002,94471.0,94470.0,0.009]
[1735001169356,0.002,94471.0,94461.0,0.18957286]
[1735001169659,0.052997,94462.0,94461.0,0.18957286]
[1735001170457,0.3608,94464.0,94455.0,0.18957286]
[1735001170657,0.052997,94462.0,94461.0,0.006]
[1735001171366,0.057997,94462.0,94461.0,0.006]
[1735001172165,0.052998,94460.0,94458.0,0.052999]
[1735001173762,0.063998,94460.0,94458.0,0.052999]
[1735001174663,0.011,94460.0,94454.0,0.0108824]
[1735001174873,0.053,94458.0,94453.0,0.053002]
[1735001175667,0.004,94460.0,94450.0,0.37237419]
[1735001175868,0.053005,94448.0,94447.0,0.18957286]
[1735001176162,0.053007,94444.0,94442.0,0.25290346]
[1735001176667,0.053007,94444.0,94443.0,0.053008]
[1735001177467,0.001,94448.0,94443.0,0.053008]
[1735001177664,0.001,94444.0,94443.0,0.053008]
[1735001177864,0.001,94444.0,94442.0,0.01089996]
[1735001178167,0.053008,94443.0,94438.0,0.24258994]
[1735001178967,0.001,94448.0,94440.0,0.053009]
[1735001179167,0.001,94444.0,94440.0,0.053009]
[1735001179866,0.003,94443.0,94438.0,0.20025509]
[1735001180064,0.003,94443.0,94442.0,0.053008]
[1735001180261,0.007,94443.0,94442.0,0.053008]
[1735001180470,0.004,94443.0,94442.0,0.053008]
[1735001180668,0.004,94443.0,94442.0,0.24258794]
[1735001182161,0.007,94443.0,94442.0,0.053008]
[1735001182573,0.003,94443.0,94442.0,0.053008]
[1735001182761,0.008,94443.0,94442.0,0.053008]
[1735001183070,0.005,94443.0,94442.0,0.053008]
[1735001183369,0.0926,94461.0,94456.0,0.053]
[1735001183564,0.0926,94461.0,94456.0,0.4138]
[1735001184672,0.0926,94461.0,94456.0,0.3608]
[1735001184870,0.145598,94461.0,94456.0,0.3608]
[1735001185670,0.145598,94461.0,94458.0,0.19002996]
[1735001186068,0.148598,94461.0,94458.0,0.19002996]
[1735001186367,0.052999,94459.0,94458.0,0.19002996]
[1735001187072,0.1026,94461.0,94455.0,0.30637429]
[1735001187372,0.1026,94461.0,94458.0,0.052999]
[1735001188167,0.004,94459.0,94458.0,0.052999]
[1735001188871,0.006,94459.0,94456.0,0.25337329]
[1735001189580,0.006,94459.0,94458.0,0.25337329]
[1735001189959,0.052999,94459.0,94458.0,0.25337329]
[1735001190272,0.057999,94459.0,94458.0,0.25337329]
[1735001190775,0.053,94458.0,94456.0,0.25337329]
[1735001191969,0.005,94459.0,94456.0,0.25337329]
[1735001192277,0.003,94458.0,94457.0,0.053]
[1735001192767,0.008,94458.0,94457.0,0.053]
[1735001192969,0.005,94458.0,94457.0,0.053]
[1735001193368,0.006,94458.0,94457.0,0.053]
[1735001194472,0.006,94458.0,94454.0,0.053001]
[1735001194677,0.009,94458.0,94452.0,0.31689082]
[1735001194866,0.053001,94455.0,94452.0,0.31689082]
[1735001195578,0.053,94457.0,94452.0,0.36989382]
[1735001196067,0.004,94455.0,94452.0,0.36989382]
[1735001196976,0.053,94456.0,94452.0,0.36989382]
[1735001197386,0.055001,94455.0,94452.0,0.36989382]
[1735001197673,0.055001,94455.0,94452.0,0.053003]
[1735001198071,0.053001,94455.0,94452.0,0.053003]
[1735001198771,0.057001,94455.0,94452.0,0.053003]
[1735001198974,0.057001,94455.0,94453.0,0.31689082]
[1735001199373,0.059001,94455.0,94453.0,0.31689082]
[1735001200275,0.059001,94455.0,94444.0,0.38068699]
[1735001200276,0.3608,94454.0,94444.0,0.38068699]
[1735001200477,0.053012,94436.0,94435.0,0.24281078]
[1735001200779,0.413812,94436.0,94435.0,0.24281078]
[1735001201866,0.415812,94436.0,94435.0,0.24281078]
[1735001202080,0.053014,94431.0,94430.0,0.00056]
[1735001202276,0.053017,94426.0,94425.0,0.053018]
[1735001203971,0.053018,94424.0,94423.0,0.01225371]
[1735001205982,0.060018,94424.0,94423.0,0.01225371]
[1735001206687,0.063018,94424.0,94423.0,0.01225371]
[1735001206882,0.063018,94424.0,94423.0,0.00158834]
[1735001210883,0.064018,94424.0,94423.0,0.00158834]
[1735001212486,0.057018,94424.0,94423.0,0.00158834]
[1735001212687,0.065018,94424.0,94423.0,0.00158834]
[1735001213289,0.053031,94401.0,94400.0,0.1]
[1735001213476,0.413831,94401.0,94400.0,0.1]
[1735001216975,0.053031,94401.0,94400.0,0.1]
[1735001219087,0.413831,94401.0,94400.0,0.1]
[1735001219688,0.421831,94401.0,94400.0,0.1]
[1735001220678,0.425831,94401.0,94400.0,0.1]
[1735001221382,0.421831,94401.0,94400.0,0.1]
[1735001221576,0.425831,94401.0,94400.0,0.1]
[1735001231291,0.55133126,94401.0,94400.0,0.1]
[1735001232198,0.425831,94401.0,94400.0,0.1]
[1735001233297,0.053032,94399.0,94386.0,0.01068894]
[1735001233497,0.053032,94399.0,94398.0,5.9e-07]
[1735001234395,0.053133,94399.0,94398.0,5.9e-07]
[1735001234794,0.061133,94399.0,94398.0,5.9e-07]
[1735001235298,0.149233,94399.0,94398.0,5.9e-07]
[1735001235498,0.153233,94399.0,94398.0,5.9e-07]
[1735001235688,0.31010833,94399.0,94398.0,5.9e-07]
[1735001235995,0.053044,94378.0,94377.0,0.1674]
[1735001237893,0.053044,94378.0,94377.0,0.17834428]
[1735001238604,0.053044,94378.0,94371.0,0.0895]
[1735001238605,0.053048,94372.0,94371.0,0.0895]
[1735001240000,0.056048,94372.0,94371.0,0.0895]
[1735001240608,0.053048,94372.0,94371.0,0.0895]
[1735001240805,0.057048,94372.0,94371.0,0.0895]
[1735001243003,0.065048,94372.0,94371.0,0.0895]
[1735001244200,0.19056912,94372.0,94371.0,0.0895]
[1735001247112,0.065048,94372.0,94371.0,0.0895]
[1735001253929,0.19072268,94372.0,94371.0,0.0895]
[1735001255133,0.053049,94369.0,94368.0,0.00158932]
[1735001256530,0.060049,94369.0,94368.0,0.00158932]
[1735001257136,0.063049,94369.0,94368.0,0.00158932]
[1735001261633,0.057049,94369.0,94368.0,0.00158932]
[1735001261944,0.065049,94369.0,94368.0,0.00158932]
[1735001265045,0.057049,94369.0,94368.0,0.00158932]
[1735001265344,0.065049,94369.0,94368.0,0.00158932]
[1735001265736,0.065049,94369.0,94368.0,3.2e-07]
[1735001265942,0.06515059,94369.0,94368.0,3.2e-07]
[1735001266443,0.053055,94359.0,94358.0,1.9e-07]
[1735001266643,0.413855,94359.0,94358.0,1.9e-07]
[1735001267046,0.413855,94359.0,94347.0,1.9e-07]
[1735001267047,0.053061,94348.0,94347.0,1.9e-07]
[1735001267340,0.413861,94348.0,94347.0,1.9e-07]
[1735001267541,0.41396259,94348.0,94347.0,1.9e-07]
[1735001267748,0.053063,94344.0,94330.0,0.00056]
[1735001267937,0.413863,94344.0,94331.0,0.01047749]
[1735001268244,0.413863,94344.0,94320.0,0.0801]
[1735001268634,0.053076,94321.0,94320.0,0.0801]
[1735001268834,0.053076,94321.0,94318.0,0.44307809]
[1735001268835,0.053077,94319.0,94318.0,0.44367809]
[1735001269044,0.053077,94319.0,94318.0,0.44307809]
[1735001269546,0.053077,94319.0,94317.0,0.00158986]
[1735001270137,0.055077,94319.0,94317.0,0.00158986]
[1735001270841,0.056077,94319.0,94317.0,0.00158986]
[1735001272346,0.003,94319.0,94317.0,0.00158986]
[1735001272537,0.09417089,94326.0,94325.0,0.053074]
[1735001272736,0.09417089,94326.0,94325.0,0.413874]
[1735001272933,0.05307,94332.0,94330.0,0.053071]
[1735001273136,0.05307,94332.0,94331.0,0.0847]
[1735001273743,0.09417089,94336.0,94331.0,0.0847]
[1735001273941,0.09417089,94336.0,94334.0,0.053069]
[1735001274142,0.053068,94336.0,94334.0,0.053069]
[1735001274344,0.413859,94352.0,94337.0,0.053067]
[1735001274538,0.14722789,94355.0,94347.0,0.053062]
[1735001274733,0.053058,94354.0,94347.0,0.413862]
[1735001275438,0.053059,94352.0,94347.0,0.413862]
[1735001275945,0.00310159,94348.0,94347.0,0.413862]
[1735001277045,0.00510159,94348.0,94347.0,0.413862]
[1735001277643,0.00510159,94348.0,94347.0,0.42452612]
[1735001278551,0.00210159,94348.0,94347.0,0.42652612]
[1735001279248,0.00010159,94348.0,94347.0,0.42752612]
[1735001279450,0.00010159,94348.0,94347.0,0.42552612]
[1735001279651,0.00310159,94348.0,94347.0,0.42552612]
[1735001279949,0.00310159,94348.0,94347.0,0.42452612]
[1735001280149,0.00510159,94348.0,94347.0,0.42452612]
[1735001281645,0.09417089,94374.0,94347.0,0.42452612]
[1735001281842,0.05305,94367.0,94364.0,0.053052]
[1735001282038,0.053048,94371.0,94367.0,0.05305]
[1735001282242,0.053053,94363.0,94361.0,0.3608]
[1735001282645,0.00011327,94362.0,94361.0,0.3608]
[1735001283153,0.00011327,94362.0,94349.0,0.3608]
[1735001283348,0.053056,94357.0,94349.0,0.3608]
[1735001283651,0.053056,94357.0,94352.0,0.053059]
[1735001283838,0.053056,94357.0,94349.0,0.3608]
[1735001284043,0.36491327,94362.0,94349.0,0.3608]
[1735001284251,0.05306,94350.0,94349.0,0.3608]
[1735001284554,0.05306,94350.0,94349.0,0.37148391]
[1735001285453,0.05306,94350.0,94349.0,0.42454391]
[1735001285644,0.05506,94350.0,94349.0,0.42454391]
[1735001286442,0.05606,94350.0,94349.0,0.42454391]
[1735001287148,0.004,94350.0,94349.0,0.42454391]
[1735001288152,0.006,94350.0,94349.0,0.42454391]
[1735001291546,0.006,94350.0,94349.0,0.06374391]
[1735001293859,0.05906,94350.0,94349.0,0.06374391]
[1735001296252,0.006,94350.0,94349.0,0.42454391]
[1735001298459,0.006,94350.0,94349.0,0.37148391]
[1735001298651,0.006,94350.0,94340.0,0.36136]
[1735001298961,0.053065,94341.0,94340.0,0.413866]
[1735001299657,0.053063,94346.0,94345.0,0.053063]
[1735001301352,0.056063,94346.0,94345.0,0.053063]
[1735001302056,0.062063,94346.0,94345.0,0.053063]
[1735001305251,0.009,94346.0,94340.0,0.42432025]
[1735001305457,0.053065,94341.0,94340.0,0.42432025]
[1735001305652,0.062063,94346.0,94345.0,0.053063]
[1735001305962,0.009,94346.0,94345.0,0.053063]
[1735001306168,0.10317089,94346.0,94345.0,0.053063]
[1735001306462,0.10017089,94346.0,94345.0,0.053063]
[1735001306664,0.10217089,94346.0,94345.0,0.053063]
[1735001307354,0.12556118,94352.0,94345.0,0.228963]
[1735001307556,0.09467073,94362.0,94361.0,0.053054]
[1735001307856,0.09467073,94362.0,94361.0,0.413854]
[1735001308664,0.10267073,94362.0,94361.0,0.413854]
[1735001308863,0.00811327,94362.0,94361.0,0.413854]
[1735001309571,0.01211327,94362.0,94361.0,0.413854]
[1735001312164,0.01211327,94362.0,94361.0,0.06348488]
[1735001312365,0.01211327,94362.0,94361.0,0.42428488]
[1735001313685,0.12556118,94375.0,94361.0,0.90018488]
[1735001313964,0.15744475,94383.0,94375.0,0.053046]
[1735001314170,0.15744475,94383.0,94382.0,0.413842]
[1735001315460,0.0691,94404.0,94402.0,0.053031]
[1735001315764,0.0691,94404.0,94402.0,0.413831]
[1735001316960,0.12213,94404.0,94402.0,0.3608]
[1735001317160,0.12213,94404.0,94402.0,0.3648]
[1735001317761,0.12213,94404.0,94402.0,0.004]
[1735001318377,0.12313,94404.0,94402.0,0.012]
[1735001318762,0.0701,94404.0,94403.0,0.05303]
[1735001319065,0.0717,94419.0,94402.0,0.3728]
[1735001319266,0.0717,94419.0,94415.0,0.053023]
[1735001320864,0.0766,94417.0,94415.0,0.053023]
[1735001321566,0.0786,94417.0,94415.0,0.053023]
[1735001322073,0.005,94417.0,94415.0,0.053023]
[1735001322871,0.005,94417.0,94415.0,0.06364133]
[1735001326264,0.002,94417.0,94415.0,0.06364133]
[1735001327764,0.0015894,94421.0,94420.0,0.053021]
[1735001328863,0.1080103,94460.0,94415.0,0.01061833]
[1735001329071,0.0725,94448.0,94440.0,0.1080103]
[1735001329261,0.0721,94447.0,94446.0,0.053006]
[1735001329464,0.0721,94447.0,94440.0,0.1080103]
[1735001329465,0.0721,94447.0,94441.0,0.053009]
[1735001329966,0.125106,94447.0,94443.0,0.3608]
[1735001330170,0.0733,94446.0,94442.0,0.3608]
[1735001330366,0.0733,94446.0,94433.0,0.3608]
[1735001330571,0.053012,94435.0,94433.0,0.3608]
[1735001331567,0.053012,94435.0,94408.0,0.1451]
[1735001331568,0.053019,94423.0,94418.0,0.053022]
[1735001331771,0.413812,94435.0,94418.0,0.053022]
[1735001331772,0.05302,94422.0,94418.0,0.053022]
[1735001332470,0.05302,94422.0,94420.0,0.05302]
[1735001332676,0.3608,94425.0,94418.0,0.01073365]
[1735001332876,0.001,94422.0,94412.0,0.3608]
[1735001333174,0.001,94422.0,94421.0,0.05302]
[1735001333676,0.004,94422.0,94421.0,0.41382]
[1735001334173,0.001,94422.0,94421.0,0.41382]
[1735001334478,0.003,94422.0,94421.0,0.41382]
[1735001335381,0.004,94422.0,94421.0,0.41382]
[1735001340265,0.004,94422.0,94412.0,0.37171184]
[1735001340474,0.053025,94413.0,94412.0,0.01091184]
[1735001340671,0.053025,94413.0,94408.0,0.053027]
[1735001341374,0.3608,94415.0,94406.0,0.01082563]
[1735001341678,0.05303,94403.0,94400.0,0.414472]
[1735001341876,0.05303,94403.0,94401.0,0.053031]
[1735001342972,0.05303,94403.0,94401.0,0.056031]
[1735001343574,0.053031,94402.0,94401.0,0.056031]
[1735001343774,0.053031,94402.0,94401.0,0.003]
[1735001343979,0.053031,94402.0,94401.0,0.005]
[1735001344883,0.054031,94402.0,94401.0,0.003]
[1735001345581,0.054031,94402.0,94401.0,0.001]
[1735001345978,0.053036,94393.0,94392.0,0.00158903]
[1735001346188,0.413836,94393.0,94392.0,0.05462503]
[1735001346777,0.413836,94393.0,94392.0,0.06525706]
[1735001349084,0.413836,94393.0,94392.0,0.01222106]
[1735001349288,0.413836,94393.0,94392.0,0.00158903]
[1735001349789,0.416836,94393.0,94392.0,0.00158903]
[1735001350284,0.414836,94393.0,94392.0,0.00158903]
[1735001350482,0.417836,94393.0,94392.0,0.00158903]
[1735001351086,0.053048,94372.0,94370.0,0.053048]
[1735001351282,0.3608,94371.0,94370.0,0.053048]
[1735001351488,0.3608,94371.0,94355.0,0.0715]
[1735001351489,0.053051,94366.0,94365.0,0.053051]
[1735001352984,0.053051,94366.0,94365.0,0.054051]
[1735001353387,0.3608,94371.0,94366.0,0.053051]
[1735001353683,0.053049,94369.0,94366.0,0.053051]
[1735001353989,0.05305,94368.0,94366.0,0.053051]
[1735001354189,0.053051,94366.0,94363.0,0.01070033]
[1735001354486,0.053051,94366.0,94360.0,0.1610643]
[1735001355377,0.053051,94366.0,94362.0,0.08345345]
[1735001356193,0.3608,94371.0,94362.0,0.08445345]
[1735001356484,0.053052,94364.0,94362.0,0.08445345]
[1735001356883,0.053052,94364.0,94362.0,0.01165345]
[1735001357184,0.053052,94364.0,94362.0,0.01065345]
[1735001357388,0.053052,94364.0,94362.0,0.001]
[1735001357575,0.053052,94364.0,94362.0,0.002]
[1735001358187,0.413853,94363.0,94362.0,0.002]
[1735001359279,0.413853,94363.0,94362.0,0.001]
[1735001359985,0.6608,94363.0,94362.0,0.014]
[1735001360185,0.713853,94363.0,94362.0,0.014]
[1735001360687,0.413853,94363.0,94362.0,0.009]
[1735001360885,0.413853,94363.0,94362.0,0.011]
[1735001361081,0.413853,94363.0,94362.0,0.002]
[1735001361388,0.413853,94363.0,94362.0,0.008]
[1735001361584,0.42440586,94363.0,94362.0,0.008]
[1735001362091,0.413853,94363.0,94362.0,0.008]
[1735001362396,0.053051,94366.0,94365.0,0.053051]
[1735001362890,0.36184001,94382.0,94362.0,0.017]
[1735001363075,0.36184001,94382.0,94373.0,0.053047]
[1735001363076,0.053047,94374.0,94373.0,0.053047]
[1735001363488,0.3608,94382.0,94368.0,0.3608]
[1735001363683,0.053043,94380.0,94379.0,0.053043]
[1735001364989,0.3608,94382.0,94373.0,0.053047]
[1735001365189,0.053045,94377.0,94373.0,0.053047]
[1735001365589,0.3608,94374.0,94368.0,0.002]
[1735001365784,0.053049,94369.0,94368.0,0.002]
[1735001366485,0.053049,94369.0,94363.0,0.0761]
[1735001366886,0.053049,94369.0,94366.0,0.053051]
[1735001367187,0.053051,94367.0,94363.0,0.0761]
[1735001367493,0.053051,94367.0,94363.0,0.129152]
[1735001367884,0.001,94369.0,94363.0,0.0761]
[1735001368085,0.053052,94364.0,94363.0,0.0761]
[1735001369887,0.054052,94364.0,94363.0,0.0761]
[1735001373289,0.055052,94364.0,94363.0,0.0761]
[1735001373781,0.053052,94364.0,94363.0,0.0761]
[1735001373981,0.055052,94364.0,94363.0,0.0761]
[1735001374599,0.056052,94364.0,94363.0,0.0761]
[1735001375288,0.055052,94364.0,94363.0,0.0761]
[1735001375791,0.053053,94363.0,94362.0,0.01061899]
[1735001375991,0.053055,94360.0,94356.0,0.3608]
[1735001376488,0.053055,94360.0,94357.0,0.053056]
[1735001376688,0.053055,94360.0,94358.0,0.053055]
[1735001377283,0.054055,94360.0,94358.0,0.053055]
[1735001378789,0.056055,94360.0,94358.0,0.053055]
[1735001378996,0.003,94360.0,94359.0,0.053055]
[1735001381895,0.001,94360.0,94359.0,0.053055]
[1735001382095,0.004,94360.0,94359.0,0.053055]
[1735001392507,0.001,94360.0,94359.0,0.053055]
[1735001392698,0.001,94360.0,94359.0,0.054055]
[1735001393708,0.05305,94368.0,94367.0,0.05305]
[1735001393907,0.12560132,94372.0,94359.0,0.055055]
[1735001394207,0.12560132,94372.0,94369.0,0.053049]
[1735001394595,0.17864932,94372.0,94369.0,0.053049]
[1735001395101,0.053048,94371.0,94369.0,0.053049]
[1735001396507,0.056048,94371.0,94369.0,0.053049]
[1735001397005,0.056048,94371.0,94370.0,0.053049]
[1735001397910,0.05305,94369.0,94367.0,0.05305]
[1735001399111,0.05305,94368.0,94367.0,0.05305]
[1735001401108,0.05305,94368.0,94367.0,0.0636807]
[1735001401602,0.05705,94368.0,94367.0,0.0636807]
[1735001402303,0.053051,94365.0,94364.0,0.31801233]
[1735001402810,0.413851,94365.0,94364.0,0.31801233]
[1735001403717,0.484551,94365.0,94364.0,0.31801233]
[1735001404302,0.485551,94365.0,94364.0,0.31801233]
[1735001404912,0.488551,94365.0,94364.0,0.31801233]
[1735001405117,0.053058,94352.0,94349.0,0.05306]
[1735001405307,0.413858,94352.0,94349.0,0.05306]
[1735001406208,0.413858,94352.0,94349.0,0.0636144]
[1735001406412,0.413858,94352.0,94351.0,0.00458942]
[1735001408507,0.413858,94352.0,94351.0,0.00258942]
[1735001409610,0.419858,94352.0,94351.0,0.00158942]
[1735001410608,0.05306,94349.0,94348.0,0.00011746]
[1735001410808,0.053068,94336.0,94335.0,0.31801233]
[1735001411009,0.413868,94336.0,94335.0,0.32888]